bitfinex-derivatives/quotes_BNBF0:USTF0_20250715
["timestamp","ask_amount","ask_price","bid_price","bid_amount"]
[1752550623017,0.9705282,675.9,674.79,0.99456168]
[1752550623217,0.9705282,675.86,674.82,0.99456168]
[1752550623518,0.9705282,675.9,674.83,0.99456168]
[1752550623715,0.9705282,675.94,674.89,0.99456168]
[1752550623919,0.9705282,675.97,674.9,0.99456168]
[1752550624113,0.9705282,675.97,673.91,3.3146158]
[1752550624114,0.9705282,676.0,674.93,0.99456168]
[1752550624619,0.9705282,676.0,674.94,0.99456168]
[1752550624820,0.9705282,676.02,674.95,0.99456168]
[1752550625620,0.9705282,676.03,674.97,0.99456168]
[1752550626420,0.9705282,676.11,675.05,0.99456168]
[1752550626818,0.9705282,676.12,675.06,0.99456168]
[1752550627319,0.9705282,676.13,675.06,0.99456168]
[1752550628820,0.9705282,676.2,675.01,0.99456168]
[1752550629617,0.9705282,676.19,675.02,0.99456168]
[1752550632219,0.9705282,676.18,675.02,0.99456168]
[1752550632623,0.9705282,676.18,675.03,0.99456168]
[1752550633523,0.9705282,676.17,675.03,0.99456168]
[1752550633723,0.9705282,676.17,675.04,0.99456168]
[1752550634021,0.9705282,676.2,675.01,0.99456168]
[1752550634324,0.9705282,676.2,675.02,0.99456168]
[1752550635423,0.25748882,676.23,674.94,0.25748882]
[1752550635626,0.96711156,676.2,675.03,0.99154482]
[1752550635822,0.96711156,676.15,675.07,0.99154482]
[1752550636325,0.96711156,676.14,675.06,0.99154482]
[1752550636821,0.96711156,676.12,675.04,0.99154482]
[1752550637122,0.96711156,676.06,675.08,0.99154482]
[1752550637320,0.96711156,676.03,675.05,0.99154482]
[1752550638128,0.96711156,676.0,675.07,0.99154482]
[1752550638827,0.96711156,675.94,675.0,0.99154482]
[1752550639123,0.96711156,675.93,675.0,0.99154482]
[1752550639326,0.96711156,675.93,675.01,0.99154482]
[1752550639823,0.96711156,675.93,675.0,0.99154482]
[1752550640025,0.96711156,675.94,675.0,0.99154482]
[1752550640927,0.96711156,675.94,675.01,0.99154482]
[1752550641128,0.96711156,675.94,675.0,0.99154482]
[1752550641324,0.96711156,675.93,675.01,0.99154482]
[1752550641627,1.3020119,676.07,675.01,0.99154482]
[1752550641628,0.96711156,675.94,675.01,0.99154482]
[1752550641928,0.96711156,675.93,675.01,0.99154482]
[1752550642225,0.96711156,675.94,675.01,0.99154482]
[1752550642927,0.96711156,675.94,675.02,0.99154482]
[1752550643427,0.96711156,675.94,675.01,0.99154482]
[1752550643628,0.96711156,675.95,675.02,0.99154482]
[1752550644725,0.96711156,675.95,675.03,0.99154482]
[1752550644922,0.96711156,675.95,675.02,0.99154482]
[1752550645627,0.96711156,675.94,675.02,0.99154482]
[1752550646025,0.96711156,675.95,675.03,0.99154482]
[1752550646429,0.96711156,675.95,675.02,0.99154482]
[1752550646629,0.96711156,675.96,675.02,0.99154482]
[1752550646827,0.96711156,676.01,675.05,0.99154482]
[1752550647527,0.96711156,676.0,675.05,0.99154482]
[1752550647730,0.96711156,676.01,675.05,0.99154482]
[1752550649835,0.96711156,676.0,675.05,0.99154482]
[1752550650331,0.96711156,676.0,675.06,0.99154482]
[1752550650536,0.96711156,675.99,675.05,0.99154482]
[1752550650835,0.25748882,676.23,674.99,0.99154482]
[1752550650836,0.96711156,676.07,674.99,0.99154482]
[1752550651135,0.96711156,675.92,674.94,0.25748882]
[1752550651636,0.96711156,675.81,674.94,0.25748882]
[1752550651932,0.96711156,675.82,674.94,0.25748882]
[1752550652133,0.96711156,675.88,674.96,0.99154482]
[1752550653134,0.96711156,675.89,674.98,0.99154482]
[1752550653732,0.96711156,675.88,674.98,0.99154482]
[1752550654337,0.96711156,675.87,674.99,0.99154482]
[1752550655337,0.96711156,675.86,674.99,0.99154482]
[1752550655840,0.96711156,675.86,675.0,0.99154482]
[1752550656042,0.96711156,675.89,675.07,0.99154482]
[1752550656241,0.96711156,675.89,675.08,0.99154482]
[1752550657240,0.96711156,675.88,675.08,0.99154482]
[1752550659044,0.96711156,675.89,675.08,0.99154482]
[1752550659243,0.96711156,675.88,675.08,0.99154482]
[1752550660344,0.96711156,675.87,675.09,0.99154482]
[1752550660541,0.96711156,675.87,675.08,0.99154482]
[1752550661243,0.96711156,675.89,675.07,0.99154482]
[1752550661446,0.96711156,675.83,675.02,0.99154482]
[1752550661643,0.96711156,675.8,675.0,0.99154482]
[1752550661848,0.96711156,675.79,674.98,0.99154482]
[1752550662345,0.96711156,675.78,674.99,0.99154482]
[1752550662848,0.96711156,675.75,674.94,0.25748882]
[1752550663246,0.96711156,675.77,674.94,0.25748882]
[1752550664051,0.96711156,675.78,674.94,0.25748882]
[1752550670150,0.96711156,675.75,674.94,0.25748882]
[1752550671552,0.96711156,675.69,674.94,0.25748882]
[1752550672053,0.96711156,675.7,674.94,0.25748882]
[1752550672252,0.96711156,675.71,674.94,0.25748882]
[1752550673255,0.96711156,675.7,674.94,0.25748882]
[1752550673448,0.96711156,675.71,674.94,0.25748882]
[1752550674552,0.96711156,675.73,674.94,0.25748882]
[1752550675051,0.96711156,675.72,674.94,0.25748882]
[1752550677350,0.96711156,675.71,674.94,0.25748882]
[1752550677753,0.96711156,675.89,674.94,0.25748882]
[1752550678052,0.96711156,675.86,674.94,0.25748882]
[1752550678459,0.96711156,675.87,674.94,0.25748882]
[1752550678658,0.96711156,675.8,674.94,0.25748882]
[1752550678859,0.96711156,675.76,674.94,0.25748882]
[1752550680660,0.96711156,675.77,674.94,0.25748882]
[1752550681057,0.96711156,675.82,674.94,0.25748882]
[1752550681356,0.96711156,675.81,674.94,0.25748882]
[1752550681757,0.96711156,675.8,674.94,0.25748882]
[1752550681957,0.96711156,675.79,674.94,0.25748882]
[1752550682457,0.96711156,675.82,674.94,0.25748882]
[1752550682760,0.96711156,675.84,674.94,0.25748882]
[1752550683261,0.96711156,675.85,674.94,0.25748882]
[1752550684759,0.96711156,675.86,674.94,0.25748882]
[1752550685162,0.96711156,675.84,674.94,0.25748882]
[1752550685357,0.96711156,675.78,674.94,1.24903364]
[1752550685658,0.96711156,675.78,674.95,0.99154482]
[1752550686458,0.96711156,675.79,674.95,0.99154482]
[1752550686861,0.96711156,675.79,674.96,0.99154482]
[1752550687358,0.96711156,675.82,674.94,0.25748882]
[1752550687559,0.96711156,675.81,674.95,0.99154482]
[1752550688057,0.96711156,675.78,674.97,0.99154482]
[1752550688258,0.96711156,675.77,674.97,0.99154482]
[1752550688458,0.96711156,675.77,674.94,0.25748882]
[1752550688459,0.96711156,675.81,674.95,0.99154482]
[1752550688661,0.96711156,675.8,674.95,0.99154482]
[1752550688860,0.96711156,675.72,675.0,0.99154482]
[1752550689064,0.25746977,676.53,674.99,0.99154482]
[1752550689065,0.96711156,675.73,674.99,0.99154482]
[1752550689365,0.96711156,675.77,674.96,0.99154482]
[1752550689761,0.96711156,675.74,674.98,0.99154482]
[1752550690062,0.96711156,675.73,674.98,0.99154482]
[1752550690266,0.96711156,675.75,674.96,0.99154482]
[1752550690765,0.96711156,675.74,674.97,0.99154482]
[1752550691262,0.96711156,675.73,674.97,0.99154482]
[1752550691461,0.96711156,675.74,674.97,0.99154482]
[1752550692264,1.9530179,676.03,674.94,0.25748882]
[1752550692461,0.25746977,676.53,674.94,0.25748882]
[1752550693565,0.25746977,676.53,674.8,0.25760699]
[1752550694262,0.25746977,676.53,674.81,0.25764037]
[1752550694667,0.25746977,676.53,662.75,0.25762893]
[1752550695265,0.25746977,676.53,664.12,0.25760985]
[1752550695766,0.25746977,676.53,665.36,0.25756695]
[1752550696269,0.25746977,676.53,666.47,0.25758507]
[1752550696666,0.25746977,676.53,667.47,0.25758125]
[1752550697267,0.25746977,676.53,668.37,0.25757744]
[1752550698670,0.25746977,676.53,660.46,0.25755456]
[1752550700878,0.96842371,675.69,674.83,0.99366311]
[1752550701074,0.96842371,675.69,674.7,1.3248841]
[1752550701075,0.96850429,675.74,674.89,0.99366311]
[1752550701276,0.96850429,675.74,674.88,0.99366311]
[1752550701776,0.25746977,676.53,675.64,0.99366311]
[1752550701979,0.25746977,676.53,675.66,0.99366311]
[1752550702277,0.25746977,676.53,675.69,0.99366311]
[1752550702876,0.25746977,676.53,675.72,0.99366311]
[1752550703079,0.25746977,676.53,675.77,0.99366311]
[1752550703278,0.25746977,676.53,675.78,0.99366311]
[1752550704480,0.25746977,676.53,675.77,0.99366311]
[1752550704979,0.25746977,676.53,675.74,0.99366311]
[1752550705278,0.25746977,676.53,675.75,0.99366311]
[1752550706280,0.25746977,676.53,675.79,0.99366311]
[1752550706483,0.25746977,676.53,675.78,0.99366311]
[1752550707080,0.25746977,676.53,675.8,0.99366311]
[1752550707283,0.25746977,676.53,675.81,0.99366311]
[1752550707583,0.25746977,676.53,675.8,0.99366311]
[1752550708184,0.25746977,676.53,675.78,0.99366311]
[1752550709084,0.25746977,676.53,675.8,0.99366311]
[1752550709284,0.25746977,676.53,675.81,0.99366311]
[1752550709584,0.25746977,676.53,675.82,0.99366311]
[1752550710385,0.25746977,676.53,675.94,0.99366311]
[1752550711485,0.25746977,676.53,675.93,0.99366311]
[1752550711682,0.25746977,676.53,675.92,0.99366311]
[1752550711883,1.2912316,676.16,675.06,0.99366311]
[1752550712486,1.2912316,676.16,675.05,0.99366311]
[1752550713087,1.2912316,676.08,674.97,0.99366311]
[1752550713682,1.2912316,676.09,674.98,0.99366311]
[1752550714086,1.2912316,676.07,674.96,0.99366311]
[1752550714984,1.2912316,676.02,674.98,0.99366311]
[1752550715485,1.2912316,676.01,674.96,0.99366311]
[1752550716389,1.2912316,676.04,674.95,0.99366311]
[1752550717189,1.2912316,676.13,674.92,0.99366311]
[1752550717989,1.2912316,676.38,674.81,0.99366311]
[1752550718189,1.2912316,676.38,674.82,0.99366311]
[1752550718387,1.2912316,676.37,674.8,0.99366311]
[1752550718687,1.2912316,676.39,674.8,0.99366311]
[1752550719184,1.2912316,676.37,674.8,0.99366311]
[1752550719385,1.2912316,676.37,674.81,0.99366311]
[1752550719792,1.2912316,676.31,674.74,0.99366311]
[1752550720092,1.2912316,676.29,674.75,0.99366311]
[1752550720391,0.25746977,676.53,672.54,4.6370945]
[1752550720392,1.2912316,676.18,674.8,0.99366311]
[1752550720788,1.2912316,675.94,674.85,0.99366311]
[1752550720992,1.2912316,676.02,674.86,0.99366311]
[1752550721195,1.2912316,676.01,674.87,0.99366311]
[1752550721389,1.2912316,676.02,674.87,0.99366311]
[1752550721893,1.2912316,676.17,675.01,0.99366311]
[1752550722193,1.2912316,676.2,675.02,0.99366311]
[1752550723697,1.2912316,676.23,675.05,0.99366311]
[1752550724296,1.2912316,676.43,675.26,0.99366311]
[1752550724490,0.25746977,676.53,675.37,0.99366311]
[1752550724896,0.25746977,676.53,675.34,0.99366311]
[1752550725296,0.25746977,676.53,675.31,0.99366311]
[1752550725596,0.25746977,676.53,675.33,0.99366311]
[1752550725892,0.25746977,676.53,675.35,0.99366311]
[1752550726095,0.25746977,676.53,675.34,0.99366311]
[1752550726292,0.25746977,676.53,675.35,0.99366311]
[1752550726799,1.2912316,676.47,675.41,0.99366311]
[1752550727298,1.2912316,676.48,675.4,0.99366311]
[1752550728096,3.228079,676.61,675.34,0.99366311]
[1752550728296,1.2912316,676.62,675.33,0.99366311]
[1752550728602,1.2912316,676.71,675.48,0.99366311]
[1752550728801,1.2912316,676.7,675.49,0.99366311]
[1752550728997,1.2912316,676.66,675.53,0.99366311]
[1752550729197,1.2912316,676.66,675.51,0.99366311]
[1752550729401,1.2912316,676.72,675.5,0.99366311]
[1752550729604,0.25730605,676.74,675.44,0.99366311]
[1752550729902,0.25730605,676.74,675.42,0.99366311]
[1752550730198,1.2912316,676.88,675.49,0.99366311]
[1752550730404,0.25726325,676.85,675.5,0.99366311]
[1752550730604,0.25726325,676.85,675.54,0.99366311]
[1752550730803,1.2912316,676.92,675.54,0.99366311]
[1752550731000,0.25722902,676.87,675.61,0.99366311]
[1752550731205,0.25722902,676.87,675.55,0.99366311]
[1752550731403,0.25722902,676.87,675.56,0.99366311]
[1752550731803,0.25722902,676.87,675.59,0.99366311]
[1752550732203,0.25722902,676.87,675.55,0.99366311]
[1752550732507,0.25722902,676.87,675.44,0.99366311]
[1752550732802,0.25722902,676.87,675.36,0.99366311]
[1752550733201,0.25722902,676.87,675.38,0.99366311]
[1752550733404,0.25722902,676.87,675.39,0.99366311]
[1752550734307,0.25722902,676.87,675.02,1.9873262]
[1752550734308,1.2912316,676.96,675.37,0.99366311]
[1752550734502,0.25725184,676.81,675.37,0.99366311]
[1752550734807,0.25725184,676.81,674.26,3.3122103]
[1752550734808,0.25725184,676.81,675.38,0.99366311]
[1752550735005,1.2912316,677.12,675.55,0.99366311]
[1752550735308,1.2912316,677.18,675.58,0.99366311]
[1752550735606,1.2912316,677.18,675.56,0.99366311]
[1752550736009,1.2912316,677.19,675.56,0.99366311]
[1752550736204,0.25720146,676.87,675.57,0.99366311]
[1752550736504,0.25720146,676.87,675.59,0.99366311]
[1752550737308,0.25720146,676.87,675.57,0.99366311]
[1752550737605,0.25720146,676.87,675.58,0.99366311]
[1752550737907,0.25720146,676.87,675.41,1.3248841]
[1752550737908,0.25720146,676.87,675.57,0.99366311]
[1752550738306,0.25720146,676.87,675.56,0.99366311]
[1752550738905,0.25720146,676.87,675.58,0.99366311]
[1752550739206,1.2912316,677.24,675.57,0.99366311]
[1752550739609,0.25717675,676.97,675.59,0.99366311]
[1752550740004,0.25717675,676.97,675.61,0.99366311]
[1752550740210,0.25717675,676.97,675.61,0.98358954]
[1752550740609,0.25717675,676.97,675.47,1.3248841]
[1752550740808,0.25717675,676.97,675.64,0.98351517]
[1752550741010,0.25717675,676.97,675.62,0.98351517]
[1752550741209,0.25717675,676.97,675.56,0.98351517]
[1752550741510,0.25717675,676.97,675.44,0.98351517]
[1752550741709,0.25717675,676.97,675.43,0.98351517]
[1752550741910,0.25717675,676.97,675.44,0.98351517]
[1752550742109,0.25717675,676.97,675.42,0.98351517]
[1752550742409,0.25717675,676.97,675.45,0.98351517]
[1752550743610,0.25717675,676.97,675.44,0.98351517]
[1752550744014,0.25717675,676.97,675.45,0.98351517]
[1752550744416,0.25717675,676.97,675.5,0.98351517]
[1752550745315,0.25717675,676.97,675.49,0.98351517]
[1752550746616,0.25717675,676.97,675.48,0.98351517]
[1752550746917,0.25717675,676.97,675.49,0.98351517]
[1752550748720,0.25717675,676.97,675.5,0.98351517]
[1752550748921,0.25717675,676.97,675.49,0.98351517]
[1752550749219,0.25717675,676.97,675.48,0.98351517]
[1752550749620,0.25717675,676.97,675.45,0.98351517]
[1752550750318,0.25717675,676.97,675.43,0.98351517]
[1752550751519,0.25717675,676.97,675.41,0.98351517]
[1752550751721,0.25717675,676.97,675.4,0.98351517]
[1752550751923,0.25717675,676.97,675.41,0.98351517]
[1752550752318,0.25717675,676.97,675.4,0.98351517]
[1752550752823,0.25717675,676.97,675.41,0.98351517]
[1752550753025,0.25717675,676.97,675.4,0.98351517]
[1752550754323,0.25717675,676.97,675.39,0.98351517]
[1752550754824,0.25717675,676.97,675.37,0.98351517]
[1752550755024,0.25717675,676.97,675.39,0.98351517]
[1752550755427,0.25717675,676.97,675.38,0.98351517]
[1752550755627,0.25717675,676.97,675.5,0.98351517]
[1752550757425,0.25717675,676.97,674.25,3.3122103]
[1752550757426,0.25717675,676.97,675.46,0.98351517]
[1752550758426,0.25717675,676.97,675.47,0.98351517]
[1752550759327,0.25717675,676.97,675.45,0.98351517]
[1752550759525,0.25717675,676.97,675.48,0.98351517]
[1752550759730,0.25717675,676.97,675.49,0.98351517]
[1752550759931,0.25717675,676.97,675.48,0.98351517]
[1752550761028,0.25717675,676.97,675.49,0.98351517]
[1752550761629,0.25717675,676.97,675.51,0.98351517]
[1752550762129,0.25717675,676.97,675.5,0.98351517]
[1752550762333,0.25717675,676.97,675.52,0.98351517]
[1752550762830,0.25717675,676.97,675.48,0.98351517]
[1752550763034,0.25717675,676.97,675.41,0.98351517]
[1752550763330,0.25717675,676.97,675.4,0.98351517]
[1752550764336,0.25717675,676.97,675.41,0.98351517]
[1752550765334,0.25717675,676.97,675.42,0.98351517]
[1752550765634,0.25717675,676.97,675.42,0.98139305]
[1752550765845,0.25717675,676.97,675.43,0.98139305]
[1752550766935,0.25717675,676.97,675.5,0.98139305]
[1752550767236,0.25717675,676.97,675.51,0.98139305]
[1752550768141,0.25717675,676.97,675.48,0.98139305]
[1752550768338,0.25717675,676.97,675.51,0.98139305]
[1752550768737,0.9607281,677.24,675.61,0.98139305]
[1752550768942,0.25716629,677.05,675.61,0.98139305]
[1752550769240,0.25716629,677.05,675.62,0.98139305]
[1752550770145,0.25716629,677.05,675.63,0.98139305]
[1752550770642,0.25716629,677.05,675.65,0.98139305]
[1752550770935,0.25716629,677.05,675.66,0.98139305]
[1752550771141,0.25716629,677.05,675.67,0.98139305]
[1752550771537,0.25716629,677.05,675.66,0.98139305]
[1752550772138,0.25716629,677.05,675.67,0.98139305]
[1752550772336,0.25716629,677.05,675.68,0.98139305]
[1752550773241,0.25716629,677.05,675.69,0.98139305]
[1752550774039,0.25716629,677.05,675.68,0.98139305]
[1752550774237,0.25716629,677.05,675.69,0.98139305]
[1752550774538,0.25716629,677.05,675.65,0.98139305]
[1752550775243,0.25716629,677.05,675.66,0.98139305]
[1752550775744,0.25716629,677.05,675.65,0.98139305]
[1752550776244,0.25716629,677.05,675.67,0.98139305]
[1752550776946,0.25716629,677.05,675.64,0.98139305]
[1752550777246,0.25716629,677.05,675.66,0.98139305]
[1752550777452,0.25716629,677.05,675.65,0.98139305]
[1752550777847,0.25716629,677.05,675.67,0.98139305]
[1752550778442,0.25716629,677.05,675.3,1.9873262]
[1752550778443,0.25716629,677.05,675.69,0.98139305]
[1752550779249,0.25716629,677.05,675.72,0.98139305]
[1752550779449,0.25716629,677.05,675.73,0.98139305]
[1752550779748,0.25716629,677.05,675.74,0.98139305]
[1752550780248,0.25716629,677.05,675.77,0.98139305]
[1752550780649,0.25716629,677.05,675.78,0.98139305]
[1752550781043,0.25716629,677.05,675.79,0.98139305]
[1752550781244,0.9607281,677.04,675.84,0.98139305]
[1752550781545,0.9607281,677.04,675.83,0.98139305]
[1752550781749,0.9607281,677.04,675.84,0.98139305]
[1752550782244,0.9607281,677.01,675.86,0.98139305]
[1752550782449,0.9607281,677.02,675.98,0.98139305]
[1752550782751,0.9607281,677.03,675.98,0.98139305]
[1752550783244,0.9607281,677.0,676.03,0.98139305]
[1752550783548,0.9607281,677.04,676.06,0.98139305]
[1752550784245,0.9607281,677.01,676.08,0.98139305]
[1752550785346,0.9607281,677.01,675.12,3.3122103]
[1752550785347,0.9607281,677.0,676.09,0.98139305]
[1752550785748,0.9607281,677.0,676.1,0.98139305]
[1752550785951,0.9607281,677.08,676.17,0.98139305]
[1752550786155,0.9607281,677.06,676.19,0.98139305]
[1752550786353,0.9607281,677.07,676.18,0.98139305]
[1752550787254,0.9607281,677.06,676.19,0.98139305]
[1752550787451,0.9607281,677.07,676.18,0.98139305]
[1752550788255,0.9607281,676.88,676.08,0.98139305]
[1752550788756,0.9607281,676.86,676.09,0.98139305]
[1752550789057,0.9607281,676.82,676.06,0.98139305]
[1752550789251,0.9607281,676.82,676.07,0.98139305]
[1752550789454,0.9607281,676.82,676.06,0.98139305]
[1752550790151,0.9607281,676.82,676.07,0.98139305]
[1752550791158,0.9607281,676.83,676.06,0.98139305]
[1752550791553,0.9607281,676.82,676.06,0.98139305]
[1752550792655,0.9607281,676.83,676.06,0.98139305]
[1752550793254,0.9607281,676.82,676.06,0.98139305]
[1752550793654,0.9607281,676.82,675.93,1.3248841]
[1752550793655,0.9607281,676.92,675.99,0.98139305]
[1752550793868,0.9607281,676.92,676.0,0.98139305]
[1752550794054,0.9607281,676.85,675.92,0.98139305]
[1752550794354,0.9607281,676.84,675.93,0.98139305]
[1752550794554,0.9607281,676.84,675.73,1.3248841]
[1752550794555,0.9607281,676.73,676.0,0.98139305]
[1752550794761,0.9607281,676.63,675.89,0.98139305]
[1752550795058,0.9607281,676.61,675.87,0.98139305]
[1752550795257,0.9607281,676.61,675.88,0.98139305]
[1752550795453,0.9607281,676.61,675.87,0.98139305]
[1752550796958,0.9607281,676.69,675.82,0.98139305]
[1752550797155,0.9607281,676.64,675.75,0.98139305]
[1752550797359,0.9607281,676.61,675.71,0.98139305]
[1752550797560,0.9607281,676.62,675.72,0.98139305]
[1752550798259,0.9607281,676.57,675.76,0.98139305]
[1752550798656,0.9607281,676.63,675.82,0.98139305]
[1752550798957,0.9607281,676.65,675.84,0.98139305]
[1752550799661,0.9607281,676.65,675.83,0.98139305]
[1752550800555,0.9607281,676.64,675.82,0.98139305]
[1752550800955,0.9607281,676.64,675.83,0.98139305]
[1752550801356,0.9607281,676.65,675.83,0.98139305]
[1752550801756,0.9607281,676.65,675.84,0.98139305]
[1752550802262,0.9607281,676.65,675.83,0.98139305]
[1752550802462,0.9607281,676.64,675.82,0.98139305]
[1752550804464,0.9607281,676.62,675.83,0.98139305]
[1752550804860,0.9607281,676.61,675.82,0.98139305]
[1752550806465,0.9607281,676.63,675.81,0.98139305]
[1752550806960,0.9607281,676.66,675.84,0.98139305]
[1752550808865,0.9607281,676.65,675.82,0.98139305]
[1752550809566,0.9607281,676.63,675.82,0.98139305]
[1752550809762,0.9607281,676.63,675.68,1.3248841]
[1752550809763,0.9607281,676.63,675.83,0.98139305]
[1752550810363,0.9607281,676.57,675.78,0.98139305]
[1752550810663,0.9607281,676.54,675.75,0.98139305]
[1752550810863,0.9716208,676.54,675.75,0.99338937]
[1752550811162,0.9716208,676.55,675.75,0.99338937]
[1752550811367,0.9716208,676.56,675.74,0.99338937]
[1752550811563,0.9716208,676.55,675.74,0.99338937]
[1752550812264,1.2912316,676.69,675.6,1.3248841]
[1752550812466,0.97141327,676.52,675.76,0.99317973]
[1752550812667,0.97141327,676.54,675.78,0.99317973]
[1752550812964,0.97141327,676.54,675.79,0.99317973]
[1752550813167,0.97141327,676.59,675.83,0.99317973]
[1752550815270,0.97141327,676.58,675.82,0.99317973]
[1752550815566,0.97141327,676.55,675.78,0.99317973]
[1752550815766,0.97141327,676.56,675.78,0.99317973]
[1752550816170,0.97141327,676.71,675.68,0.99317973]
[1752550816867,0.97141327,676.72,675.67,0.99317973]
[1752550817167,0.97141327,676.7,675.65,0.99317973]
[1752550817377,0.97141327,676.71,675.66,0.99317973]
[1752550817977,1.2912316,676.93,675.43,1.3248841]
[1752550818178,0.97134841,676.71,675.66,0.99286106]
[1752550818378,0.97134841,676.71,675.65,0.99286106]
[1752550819681,0.97134841,676.75,675.69,0.99286106]
[1752550820272,0.97134841,676.76,675.69,0.99286106]
[1752550821474,0.97134841,676.63,675.78,0.99286106]
[1752550821675,0.97134841,676.62,675.78,0.99286106]
[1752550822178,0.97134841,676.63,675.77,0.99286106]
[1752550822979,0.97134841,676.64,675.76,0.99286106]
[1752550823676,0.97134841,676.6,675.72,0.99286106]
[1752550823886,0.97134841,676.58,675.7,0.99286106]
[1752550824085,0.97134841,676.63,675.66,0.99286106]
[1752550824984,0.97134841,676.61,675.65,0.99286106]
[1752550825186,0.97134841,676.55,675.59,0.99286106]
[1752550825379,0.97134841,676.55,674.51,3.3122103]
[1752550825380,0.97134841,676.54,675.57,0.99286106]
[1752550826285,0.97134841,676.54,675.39,1.3248841]
[1752550826286,0.97134841,676.55,675.56,0.99286106]
[1752550826786,0.97134841,676.57,675.57,0.99286106]
[1752550827491,0.97134841,676.58,675.57,0.99286106]
[1752550828784,0.97134841,676.58,675.56,0.99286106]
[1752550829083,0.97134841,676.57,675.56,0.99286106]
[1752550829286,0.97134841,676.58,675.55,0.99286106]
[1752550829993,0.97134841,676.57,675.55,0.99286106]
[1752550830196,0.97134841,676.6,675.53,0.99286106]
[1752550830794,0.97134841,676.56,675.56,0.99286106]
[1752550831289,0.97134841,676.56,675.57,0.99286106]
[1752550831486,0.97134841,676.59,675.56,0.99286106]
[1752550831886,0.97134841,676.59,675.61,0.99286106]
[1752550832086,0.97134841,676.58,675.62,0.99286106]
[1752550832289,0.97134841,676.59,675.61,0.99286106]
[1752550833085,0.97134841,676.58,675.62,0.99286106]
[1752550833787,0.97134841,676.64,675.67,0.99286106]
[1752550834291,0.97134841,676.67,675.7,0.99286106]
[1752550835187,0.97134841,676.67,675.71,0.99286106]
[1752550835987,0.97134841,676.67,675.7,0.99286106]
[1752550836385,0.97134841,676.67,675.74,0.99286106]
[1752550837093,0.97134841,676.74,675.7,0.99286106]
[1752550837292,0.97134841,676.77,675.73,0.99286106]
[1752550840389,0.25712354,677.15,675.73,0.99286106]
[1752550840390,0.97134841,676.78,675.73,0.99286106]
[1752550841089,0.97134841,676.78,675.74,0.99286106]
[1752550841593,0.97134841,676.69,675.79,0.99286106]
[1752550842393,0.97134841,676.77,675.88,0.99286106]
[1752550842593,1.2912316,676.91,674.97,3.3122103]
[1752550842594,0.97134841,676.78,675.87,0.99286106]
[1752550842994,0.97134841,676.68,675.77,0.99286106]
[1752550844090,0.97134841,676.68,675.78,0.99286106]
[1752550844296,0.97134841,676.87,675.68,0.99286106]
[1752550844590,0.25714444,677.31,676.23,0.99286106]
[1752550844793,0.25714444,677.31,676.21,0.99286106]
[1752550844989,0.25714444,677.31,676.2,0.99286106]
[1752550845290,0.25714444,677.31,676.21,0.99286106]
[1752550845494,0.25714444,677.31,676.18,0.99286106]
[1752550846194,0.25714444,677.31,676.08,0.99286106]
[1752550846395,0.97134841,677.27,675.94,0.99286106]
[1752550846595,0.97134841,677.26,675.94,0.99286106]
[1752550846793,0.97134841,677.26,675.93,0.99286106]
[1752550847297,0.97134841,677.27,675.92,0.99286106]
[1752550847496,0.97134841,677.25,675.94,0.99286106]
[1752550848099,0.97134841,677.02,676.09,0.99286106]
[1752550848395,0.97134841,677.02,675.92,1.3248841]
[1752550848396,0.97134841,677.26,675.94,0.99286106]
[1752550848592,0.97134841,677.24,675.94,0.99286106]
[1752550848792,0.97134841,677.27,675.97,0.99286106]
[1752550849095,0.25714444,677.31,676.12,0.99286106]
[1752550849297,0.25714444,677.31,674.33,3.3122103]
[1752550849298,0.25714444,677.31,676.1,0.99286106]
[1752550849696,0.97134841,677.03,675.68,0.99286106]
[1752550849893,0.97134841,677.01,675.69,0.99286106]
[1752550850093,0.97134841,676.94,675.74,0.99286106]
[1752550850297,0.97134841,676.91,675.76,0.99286106]
[1752550850497,0.97134841,676.9,675.77,0.99286106]
[1752550850696,0.25714444,677.31,675.8,0.99286106]
[1752550850697,0.97134841,676.93,675.8,0.99286106]
[1752550850894,0.97134841,676.92,675.83,0.99286106]
[1752550851094,0.97134841,676.91,675.83,0.99286106]
[1752550851397,0.97134841,676.89,675.82,0.99286106]
[1752550851898,0.97134841,677.07,676.0,0.99286106]
[1752550852098,0.97134841,677.06,675.99,0.99286106]
[1752550852294,0.97134841,677.06,674.59,3.3122103]
[1752550852295,0.97134841,677.04,675.96,0.99286106]
[1752550852698,0.97134841,677.04,675.76,1.3248841]
[1752550852699,0.97134841,677.03,675.97,0.99286106]
[1752550852895,0.97134841,677.04,675.97,0.99286106]
[1752550853103,0.97134841,677.03,675.99,0.99286106]
[1752550853301,0.97134841,677.01,676.0,0.99286106]
[1752550854401,1.2912316,677.18,676.0,0.99286106]
[1752550854402,0.97134841,677.0,676.0,0.99286106]
[1752550855198,0.97134841,677.2,676.18,0.99286106]
[1752550855398,0.97134841,677.2,675.83,1.9873262]
[1752550855399,0.97134841,677.22,676.19,0.99286106]
[1752550856304,0.97134841,677.23,676.18,0.99286106]
[1752550856499,0.97134841,677.24,676.18,0.99286106]
[1752550856702,0.97134841,677.21,676.15,0.99286106]
[1752550856898,0.97134841,677.3,676.1,0.99286106]
[1752550857103,1.22849285,677.31,676.1,0.99286106]
[1752550857304,0.25714444,677.31,676.09,0.99286106]